{"text_format":"3","workbook":"xlsx","n_sheets":4,"sheets":["Dispositif de suivi de projet","Diagramme du projet","À propos","Données dynamiques masquées"],"not_rendered":{"charts":1,"defined_names":8},"read":"whole","date_system":"1900"}

{"sheet":"Dispositif de suivi de projet","index":0,"n_rows":22,"n_cols":7,"rows_kept":22}
["Créez un Dispositif de suivi de projet dans cette feuille de calcul.\nLe titre de cette feuille de calcul figure dans la cellule B1. \nDes informations sur l’utilisation de cette feuille de calcul, notamment des instructions pour les lecteurs d’écran, figurent dans la feuille de calcul À propos.","Dispositif de suivi de projet"]
["Vous pouvez entrer la date de début manuellement dans la cellule D2, ou utiliser l’exemple de formule du modèle pour rechercher la date la plus proche dans la colonne Jalon du tableau de jalons ci-dessous.",null,"Date de début :",{"$f":"IFERROR(IF(MIN(Jalons[Date de début])=0,TODAY(),MIN(Jalons[Date de début])),TODAY())","v":"2022-01-19"}]
["Vous pouvez entrer la date de fin manuellement dans la cellule D3, ou utiliser l’exemple de formule du modèle pour rechercher la date la plus lointaine dans la colonne Jalon du tableau de jalons ci-dessous.",null,"Date de fin :",{"$f":"IFERROR(IF(MAX(Jalons[Date de fin])=0,TODAY(),MAX(Jalons[Date de fin])),TODAY())","v":"2022-08-17"}]
["Les informations sur les colonnes du tableau de jalons figurent dans les cellules B4 à G4.","Entrez un ensemble séquentiel de nombres dans la colonne ci-dessous.","Entrez la date de début du jalon ou de l’activité dans la colonne ci-dessous.","Entrez la date de fin du jalon ou de l’activité dans la colonne ci-dessous.","Entrez la description du jalon ou de l’activité dans la colonne ci-dessous. Cette description apparaît dans le Diagramme du projet.","Calculé automatiquement. Les données ci-dessous, sous cette colonne, sont utilisées pour tracer les jalons et les activités.","Calculé automatiquement. Durée de chaque tâche "]
["Les en-têtes de tableau figurent dans les cellules B5 à G5. \nDeux colonnes sont masquées : Les colonnes Démarrer le jour et Durée des tâches dans les cellules F5 et G5 sont calculées automatiquement et utilisées pour créer le diagramme de Gantt dans la feuille de calcul Diagramme de Gantt. \nLes cellules B6 à E21 contiennent des exemples de données. \nL’instruction suivante figure dans la cellule A22.","Position","Date de début","Date de fin","Jalon/Activité","Jour de début","Durée de la tâche"]
[null,1,{"$f":"TODAY()-10","v":"2022-02-08"},{"$f":"Jalons[[#This Row],[Date de début]]+10","v":"2022-02-18"},"Début",{"$f":"IFERROR(IF(OR(LEN(Jalons[[#This Row],[Date de début]])=0,LEN(Jalons[[#This Row],[Date de fin]])=0),\"\",INT(C6)-INT($C$6)),\"\")","v":0},{"$f":"IFERROR(IF(Jalons[[#This Row],[Jour de début]]=0,DATEDIF(Jalons[[#This Row],[Date de début]],Jalons[[#This Row],[Date de fin]],\"d\")+1,IF(LEN(Jalons[[#This Row],[Jour de début]])=0,\"\",DATEDIF(Jalons[[#This Row],[Date de début]],Jalons[[#This Row],[Date de fin]],\"d\")+1)),0)","v":11}]
[null,2,{"$f":"TODAY()+5","v":"2022-02-23"},{"$f":"Jalons[[#This Row],[Date de début]]+15","v":"2022-03-10"},{"$f":"\"Activité\"&\" \"&ROW($A2)","v":"Activité 2"},{"$f":"IFERROR(IF(OR(LEN(Jalons[[#This Row],[Date de début]])=0,LEN(Jalons[[#This Row],[Date de fin]])=0),\"\",INT(C7)-INT($C$6)),\"\")","v":15},{"$f":"IFERROR(IF(Jalons[[#This Row],[Jour de début]]=0,DATEDIF(Jalons[[#This Row],[Date de début]],Jalons[[#This Row],[Date de fin]],\"d\")+1,IF(LEN(Jalons[[#This Row],[Jour de début]])=0,\"\",DATEDIF(Jalons[[#This Row],[Date de début]],Jalons[[#This Row],[Date de fin]],\"d\")+1)),0)","v":16}]
[null,3,{"$f":"TODAY()-30","v":"2022-01-19"},{"$f":"Jalons[[#This Row],[Date de début]]+152","v":"2022-06-20"},"Activité 3",{"$f":"IFERROR(IF(OR(LEN(Jalons[[#This Row],[Date de début]])=0,LEN(Jalons[[#This Row],[Date de fin]])=0),\"\",INT(C8)-INT($C$6)),\"\")","v":{"v":-20,"d":"-20 "}},{"$f":"IFERROR(IF(Jalons[[#This Row],[Jour de début]]=0,DATEDIF(Jalons[[#This Row],[Date de début]],Jalons[[#This Row],[Date de fin]],\"d\")+1,IF(LEN(Jalons[[#This Row],[Jour de début]])=0,\"\",DATEDIF(Jalons[[#This Row],[Date de début]],Jalons[[#This Row],[Date de fin]],\"d\")+1)),0)","v":153}]
[null,4,{"$f":"TODAY()+2","v":"2022-02-20"},{"$f":"Jalons[[#This Row],[Date de début]]+150","v":"2022-07-20"},"Activité 4",{"$f":"IFERROR(IF(OR(LEN(Jalons[[#This Row],[Date de début]])=0,LEN(Jalons[[#This Row],[Date de fin]])=0),\"\",INT(C9)-INT($C$6)),\"\")","v":12},{"$f":"IFERROR(IF(Jalons[[#This Row],[Jour de début]]=0,DATEDIF(Jalons[[#This Row],[Date de début]],Jalons[[#This Row],[Date de fin]],\"d\")+1,IF(LEN(Jalons[[#This Row],[Jour de début]])=0,\"\",DATEDIF(Jalons[[#This Row],[Date de début]],Jalons[[#This Row],[Date de fin]],\"d\")+1)),0)","v":151}]
[null,5,{"$f":"TODAY()+15","v":"2022-03-05"},{"$f":"Jalons[[#This Row],[Date de début]]+14","v":"2022-03-19"},"Activité 5",{"$f":"IFERROR(IF(OR(LEN(Jalons[[#This Row],[Date de début]])=0,LEN(Jalons[[#This Row],[Date de fin]])=0),\"\",INT(C10)-INT($C$6)),\"\")","v":25},{"$f":"IFERROR(IF(Jalons[[#This Row],[Jour de début]]=0,DATEDIF(Jalons[[#This Row],[Date de début]],Jalons[[#This Row],[Date de fin]],\"d\")+1,IF(LEN(Jalons[[#This Row],[Jour de début]])=0,\"\",DATEDIF(Jalons[[#This Row],[Date de début]],Jalons[[#This Row],[Date de fin]],\"d\")+1)),0)","v":15}]
[null,6,{"$f":"TODAY()+30","v":"2022-03-20"},{"$f":"Jalons[[#This Row],[Date de début]]+45","v":"2022-05-04"},"Activité 6",{"$f":"IFERROR(IF(OR(LEN(Jalons[[#This Row],[Date de début]])=0,LEN(Jalons[[#This Row],[Date de fin]])=0),\"\",INT(C11)-INT($C$6)),\"\")","v":40},{"$f":"IFERROR(IF(Jalons[[#This Row],[Jour de début]]=0,DATEDIF(Jalons[[#This Row],[Date de début]],Jalons[[#This Row],[Date de fin]],\"d\")+1,IF(LEN(Jalons[[#This Row],[Jour de début]])=0,\"\",DATEDIF(Jalons[[#This Row],[Date de début]],Jalons[[#This Row],[Date de fin]],\"d\")+1)),0)","v":46}]
[null,7,{"$f":"TODAY()+45","v":"2022-04-04"},{"$f":"Jalons[[#This Row],[Date de début]]+56","v":"2022-05-30"},"Activité 7",{"$f":"IFERROR(IF(OR(LEN(Jalons[[#This Row],[Date de début]])=0,LEN(Jalons[[#This Row],[Date de fin]])=0),\"\",INT(C12)-INT($C$6)),\"\")","v":55},{"$f":"IFERROR(IF(Jalons[[#This Row],[Jour de début]]=0,DATEDIF(Jalons[[#This Row],[Date de début]],Jalons[[#This Row],[Date de fin]],\"d\")+1,IF(LEN(Jalons[[#This Row],[Jour de début]])=0,\"\",DATEDIF(Jalons[[#This Row],[Date de début]],Jalons[[#This Row],[Date de fin]],\"d\")+1)),0)","v":57}]
[null,8,{"$f":"TODAY()+60","v":"2022-04-19"},{"$f":"Jalons[[#This Row],[Date de début]]+30","v":"2022-05-19"},{"$f":"\"Activité\"&\" \"&ROW($A8)","v":"Activité 8"},{"$f":"IFERROR(IF(OR(LEN(Jalons[[#This Row],[Date de début]])=0,LEN(Jalons[[#This Row],[Date de fin]])=0),\"\",INT(C13)-INT($C$6)),\"\")","v":70},{"$f":"IFERROR(IF(Jalons[[#This Row],[Jour de début]]=0,DATEDIF(Jalons[[#This Row],[Date de début]],Jalons[[#This Row],[Date de fin]],\"d\")+1,IF(LEN(Jalons[[#This Row],[Jour de début]])=0,\"\",DATEDIF(Jalons[[#This Row],[Date de début]],Jalons[[#This Row],[Date de fin]],\"d\")+1)),0)","v":31}]
[null,9,{"$f":"TODAY()+37","v":"2022-03-27"},{"$f":"Jalons[[#This Row],[Date de début]]+22","v":"2022-04-18"},{"$f":"\"Activité\"&\" \"&ROW($A9)","v":"Activité 9"},{"$f":"IFERROR(IF(OR(LEN(Jalons[[#This Row],[Date de début]])=0,LEN(Jalons[[#This Row],[Date de fin]])=0),\"\",INT(C14)-INT($C$6)),\"\")","v":47},{"$f":"IFERROR(IF(Jalons[[#This Row],[Jour de début]]=0,DATEDIF(Jalons[[#This Row],[Date de début]],Jalons[[#This Row],[Date de fin]],\"d\")+1,IF(LEN(Jalons[[#This Row],[Jour de début]])=0,\"\",DATEDIF(Jalons[[#This Row],[Date de début]],Jalons[[#This Row],[Date de fin]],\"d\")+1)),0)","v":23}]
[null,10,{"$f":"TODAY()-20","v":"2022-01-29"},{"$f":"Jalons[[#This Row],[Date de début]]+160","v":"2022-07-08"},{"$f":"\"Activité\"&\" \"&ROW($A10)","v":"Activité 10"},{"$f":"IFERROR(IF(OR(LEN(Jalons[[#This Row],[Date de début]])=0,LEN(Jalons[[#This Row],[Date de fin]])=0),\"\",INT(C15)-INT($C$6)),\"\")","v":{"v":-10,"d":"-10 "}},{"$f":"IFERROR(IF(Jalons[[#This Row],[Jour de début]]=0,DATEDIF(Jalons[[#This Row],[Date de début]],Jalons[[#This Row],[Date de fin]],\"d\")+1,IF(LEN(Jalons[[#This Row],[Jour de début]])=0,\"\",DATEDIF(Jalons[[#This Row],[Date de début]],Jalons[[#This Row],[Date de fin]],\"d\")+1)),0)","v":161}]
[null,11,{"$f":"TODAY()+20","v":"2022-03-10"},{"$f":"Jalons[[#This Row],[Date de début]]+65","v":"2022-05-14"},{"$f":"\"Activité\"&\" \"&ROW($A11)","v":"Activité 11"},{"$f":"IFERROR(IF(OR(LEN(Jalons[[#This Row],[Date de début]])=0,LEN(Jalons[[#This Row],[Date de fin]])=0),\"\",INT(C16)-INT($C$6)),\"\")","v":30},{"$f":"IFERROR(IF(Jalons[[#This Row],[Jour de début]]=0,DATEDIF(Jalons[[#This Row],[Date de début]],Jalons[[#This Row],[Date de fin]],\"d\")+1,IF(LEN(Jalons[[#This Row],[Jour de début]])=0,\"\",DATEDIF(Jalons[[#This Row],[Date de début]],Jalons[[#This Row],[Date de fin]],\"d\")+1)),0)","v":66}]
[null,12,{"$f":"TODAY()+70","v":"2022-04-29"},{"$f":"Jalons[[#This Row],[Date de début]]+67","v":"2022-07-05"},{"$f":"\"Activité\"&\" \"&ROW($A12)","v":"Activité 12"},{"$f":"IFERROR(IF(OR(LEN(Jalons[[#This Row],[Date de début]])=0,LEN(Jalons[[#This Row],[Date de fin]])=0),\"\",INT(C17)-INT($C$6)),\"\")","v":80},{"$f":"IFERROR(IF(Jalons[[#This Row],[Jour de début]]=0,DATEDIF(Jalons[[#This Row],[Date de début]],Jalons[[#This Row],[Date de fin]],\"d\")+1,IF(LEN(Jalons[[#This Row],[Jour de début]])=0,\"\",DATEDIF(Jalons[[#This Row],[Date de début]],Jalons[[#This Row],[Date de fin]],\"d\")+1)),0)","v":68}]
[null,13,{"$f":"TODAY()+90","v":"2022-05-19"},{"$f":"Jalons[[#This Row],[Date de début]]+14","v":"2022-06-02"},"Activité 13",{"$f":"IFERROR(IF(OR(LEN(Jalons[[#This Row],[Date de début]])=0,LEN(Jalons[[#This Row],[Date de fin]])=0),\"\",INT(C18)-INT($C$6)),\"\")","v":100},{"$f":"IFERROR(IF(Jalons[[#This Row],[Jour de début]]=0,DATEDIF(Jalons[[#This Row],[Date de début]],Jalons[[#This Row],[Date de fin]],\"d\")+1,IF(LEN(Jalons[[#This Row],[Jour de début]])=0,\"\",DATEDIF(Jalons[[#This Row],[Date de début]],Jalons[[#This Row],[Date de fin]],\"d\")+1)),0)","v":15}]
[null,14,{"$f":"TODAY()+100","v":"2022-05-29"},{"$f":"Jalons[[#This Row],[Date de début]]+3","v":"2022-06-01"},"Activité 14",{"$f":"IFERROR(IF(OR(LEN(Jalons[[#This Row],[Date de début]])=0,LEN(Jalons[[#This Row],[Date de fin]])=0),\"\",INT(C19)-INT($C$6)),\"\")","v":110},{"$f":"IFERROR(IF(Jalons[[#This Row],[Jour de début]]=0,DATEDIF(Jalons[[#This Row],[Date de début]],Jalons[[#This Row],[Date de fin]],\"d\")+1,IF(LEN(Jalons[[#This Row],[Jour de début]])=0,\"\",DATEDIF(Jalons[[#This Row],[Date de début]],Jalons[[#This Row],[Date de fin]],\"d\")+1)),0)","v":4}]
[null,15,{"$f":"TODAY()+50","v":"2022-04-09"},{"$f":"Jalons[[#This Row],[Date de début]]+130","v":"2022-08-17"},"Activité 15",{"$f":"IFERROR(IF(OR(LEN(Jalons[[#This Row],[Date de début]])=0,LEN(Jalons[[#This Row],[Date de fin]])=0),\"\",INT(C20)-INT($C$6)),\"\")","v":60},{"$f":"IFERROR(IF(Jalons[[#This Row],[Jour de début]]=0,DATEDIF(Jalons[[#This Row],[Date de début]],Jalons[[#This Row],[Date de fin]],\"d\")+1,IF(LEN(Jalons[[#This Row],[Jour de début]])=0,\"\",DATEDIF(Jalons[[#This Row],[Date de début]],Jalons[[#This Row],[Date de fin]],\"d\")+1)),0)","v":131}]
[{"$nulls":5},{"$f":"IFERROR(IF(OR(LEN(Jalons[[#This Row],[Date de début]])=0,LEN(Jalons[[#This Row],[Date de fin]])=0),\"\",INT(C21)-INT($C$6)),\"\")","v":""},{"$f":"IFERROR(IF(Jalons[[#This Row],[Jour de début]]=0,DATEDIF(Jalons[[#This Row],[Date de début]],Jalons[[#This Row],[Date de fin]],\"d\")+1,IF(LEN(Jalons[[#This Row],[Jour de début]])=0,\"\",DATEDIF(Jalons[[#This Row],[Date de début]],Jalons[[#This Row],[Date de fin]],\"d\")+1)),0)","v":""}]
["Pour ajouter des jalons ou activités, insérez des lignes au-dessus de celle-ci.\nCeci est la dernière instruction de cette feuille de calcul.","Pour ajouter des jalons ou des activités, insérez des lignes au-dessus de celle-ci."]

{"sheet":"Diagramme du projet","index":1,"n_rows":1,"n_cols":1,"rows_kept":1}
["Le diagramme de Gantt avec une barre de défilement figure dans cette feuille de calcul. \nLe barre de défilement commence dans la cellule B29.\nCeci est la dernière instruction de cette feuille de calcul."]

{"sheet":"À propos","index":2,"n_rows":6,"n_cols":1,"rows_kept":6}
["À propos de ce classeur"]
["\nEntrez vos données dans la feuille de calcul Dispositif de suivi de projet, puis faites défiler une représentation visuelle de votre chronologie dans la feuille de calcul Diagramme du projet. \n"]
["La colonne Position dans la feuille de calcul Dispositif de suivi de projet vous permet de tracer des jalons et activités sur des lignes distinctes. Vous pourriez, par exemple, avoir deux jalons ou activités démarrant le même jour et s’exécutant en parallèle. S’ils avaient la même valeur de position, ils se chevaucheraient sur le diagramme. Fournissez deux valeurs de position uniques pour les tracer sur des lignes distinctes. Essayez par vous-même.\n\nÀ la fin du diagramme, vous remarquerez peut-être des marqueurs sans texte ou durée définis sur une chronologie spécifique. Lorsque le dernier jalon défile hors du diagramme, ces marqueurs indiquent la fin des jalons dans le Dispositif de suivi de projet à représenter sous forme graphique. Faites simplement défiler en arrière ou jusqu’au début pour afficher les jalons traçables.\n"]
["Guide pour les lecteurs d’écran"]
["Ce classeur contient quatre feuilles de calcul. \n\nDispositif de suivi de projet\nDiagramme du projet\nÀ propos\nDonnées de graphique dynamiques (Masqué)\n\nLes instructions relatives à chaque feuille de calcul figurent dans la colonne A qui commence à la cellule A1. Elles sont rédigées en texte masqué. Chaque étape vous explique comment utiliser les informations décrites dans la ligne. Les étapes suivantes sont décrites dans les cellules A2, A3, etc. sauf mention contraire. Par exemple, l’instruction peut indiquer de « consulter la cellule A6 » pour l’étape suivante. \n\nLe texte masqué n’est pas imprimé.\n\nPour supprimer ces instructions d’une feuille de calcul, supprimez simplement la colonne A.\n"]
["Ceci est la dernière instruction de cette feuille de calcul."]

{"sheet":"Données dynamiques masquées","index":3,"n_rows":10,"n_cols":6,"rows_kept":10,"hidden":true}
["Le titre de cette feuille de calcul figure dans la cellule B1.","Données de graphique dynamiques"]
["L’en-tête d’incrément de défilement horizontal figure dans la cellule B2.\nPour incrémenter manuellement les données, entrez une nouvelle valeur dans la cellule B3.\nLa page défilante se met à jour automatiquement lorsque la barre de défilement est paginé vers l’avant ou l’arrière dans la feuille de calcul Diagramme de Gantt.","incrément de défilement horizontal"]
["La valeur défilement mise à jour automatiquement du diagramme de Gantt figure dans la cellule B3.",1]
["Le titre de tableau figure dans la cellule B4.","Tableau de données dynamiques"]
["Les en-têtes de tableau figurent dans les cellules B5 à E5. \nUne note figure dans la cellule F5.\nCe tableau permet de tracer jusqu’à 5 jalons à la fois. \nNe modifiez ou ne supprimez pas cette feuille de calcul ou son contenu.","jalon","date","Jour de début","durée","<--Tracez jusqu’à 5 jalons à la fois"]
[null,{"$f":"IFERROR(IF(LEN(OFFSET('Dispositif de suivi de projet'!$E6,$B$3,0,1,1))=0,\"\",INDEX(Jalons[],'Dispositif de suivi de projet'!$B6+$B$3,4)),\"\")","v":"Activité 2"},{"$f":"IFERROR(IF(LEN(OFFSET('Dispositif de suivi de projet'!$C6,$B$3,0,1,1))=0,Date_Fin,INDEX(Jalons[],'Dispositif de suivi de projet'!$B6+$B$3,2)),\"\")","v":"2022-02-23"},{"$f":"IFERROR(IF(LEN(OFFSET('Dispositif de suivi de projet'!$F6,$B$3,0,1,1))=0,\"\",INDEX(Jalons[],'Dispositif de suivi de projet'!$B6+$B$3,5)),\"\")","v":15},{"$f":"IFERROR(IF(LEN(OFFSET('Dispositif de suivi de projet'!$G6,$B$3,0,1,1))=0,\"\",INDEX(Jalons[],'Dispositif de suivi de projet'!$B6+$B$3,6)),\"\")","v":16}]
[null,{"$f":"IFERROR(IF(LEN(OFFSET('Dispositif de suivi de projet'!$E7,$B$3,0,1,1))=0,\"\",INDEX(Jalons[],'Dispositif de suivi de projet'!$B7+$B$3,4)),\"\")","v":"Activité 3"},{"$f":"IFERROR(IF(LEN(OFFSET('Dispositif de suivi de projet'!$C7,$B$3,0,1,1))=0,Date_Fin,INDEX(Jalons[],'Dispositif de suivi de projet'!$B7+$B$3,2)),\"\")","v":"2022-01-19"},{"$f":"IFERROR(IF(LEN(OFFSET('Dispositif de suivi de projet'!$F7,$B$3,0,1,1))=0,\"\",INDEX(Jalons[],'Dispositif de suivi de projet'!$B7+$B$3,5)),\"\")","v":-20},{"$f":"IFERROR(IF(LEN(OFFSET('Dispositif de suivi de projet'!$G7,$B$3,0,1,1))=0,\"\",INDEX(Jalons[],'Dispositif de suivi de projet'!$B7+$B$3,6)),\"\")","v":153}]
[null,{"$f":"IFERROR(IF(LEN(OFFSET('Dispositif de suivi de projet'!$E8,$B$3,0,1,1))=0,\"\",INDEX(Jalons[],'Dispositif de suivi de projet'!$B8+$B$3,4)),\"\")","v":"Activité 4"},{"$f":"IFERROR(IF(LEN(OFFSET('Dispositif de suivi de projet'!$C8,$B$3,0,1,1))=0,Date_Fin,INDEX(Jalons[],'Dispositif de suivi de projet'!$B8+$B$3,2)),\"\")","v":"2022-02-20"},{"$f":"IFERROR(IF(LEN(OFFSET('Dispositif de suivi de projet'!$F8,$B$3,0,1,1))=0,\"\",INDEX(Jalons[],'Dispositif de suivi de projet'!$B8+$B$3,5)),\"\")","v":12},{"$f":"IFERROR(IF(LEN(OFFSET('Dispositif de suivi de projet'!$G8,$B$3,0,1,1))=0,\"\",INDEX(Jalons[],'Dispositif de suivi de projet'!$B8+$B$3,6)),\"\")","v":151}]
[null,{"$f":"IFERROR(IF(LEN(OFFSET('Dispositif de suivi de projet'!$E9,$B$3,0,1,1))=0,\"\",INDEX(Jalons[],'Dispositif de suivi de projet'!$B9+$B$3,4)),\"\")","v":"Activité 5"},{"$f":"IFERROR(IF(LEN(OFFSET('Dispositif de suivi de projet'!$C9,$B$3,0,1,1))=0,Date_Fin,INDEX(Jalons[],'Dispositif de suivi de projet'!$B9+$B$3,2)),\"\")","v":"2022-03-05"},{"$f":"IFERROR(IF(LEN(OFFSET('Dispositif de suivi de projet'!$F9,$B$3,0,1,1))=0,\"\",INDEX(Jalons[],'Dispositif de suivi de projet'!$B9+$B$3,5)),\"\")","v":25},{"$f":"IFERROR(IF(LEN(OFFSET('Dispositif de suivi de projet'!$G9,$B$3,0,1,1))=0,\"\",INDEX(Jalons[],'Dispositif de suivi de projet'!$B9+$B$3,6)),\"\")","v":15}]
[null,{"$f":"IFERROR(IF(LEN(OFFSET('Dispositif de suivi de projet'!$E10,$B$3,0,1,1))=0,\"\",INDEX(Jalons[],'Dispositif de suivi de projet'!$B10+$B$3,4)),\"\")","v":"Activité 6"},{"$f":"IFERROR(IF(LEN(OFFSET('Dispositif de suivi de projet'!$C10,$B$3,0,1,1))=0,Date_Fin,INDEX(Jalons[],'Dispositif de suivi de projet'!$B10+$B$3,2)),\"\")","v":"2022-03-20"},{"$f":"IFERROR(IF(LEN(OFFSET('Dispositif de suivi de projet'!$F10,$B$3,0,1,1))=0,\"\",INDEX(Jalons[],'Dispositif de suivi de projet'!$B10+$B$3,5)),\"\")","v":40},{"$f":"IFERROR(IF(LEN(OFFSET('Dispositif de suivi de projet'!$G10,$B$3,0,1,1))=0,\"\",INDEX(Jalons[],'Dispositif de suivi de projet'!$B10+$B$3,6)),\"\")","v":46}]